bitfinex/quotes_SOLUSD_20250529
["timestamp","ask_amount","ask_price","bid_price","bid_amount"]
[1748541754605,5.92875823,168.67,168.63,21.83608791]
[1748541754913,5.92875823,168.67,168.64,21.55176477]
[1748541755496,5.92875823,168.67,168.63,0.28432314]
[1748541755497,27.480523,168.67,168.63,0.28432314]
[1748541756009,5.92875823,168.67,168.63,21.83608791]
[1748541756901,27.480523,168.67,168.63,0.28432314]
[1748541757296,27.480523,168.67,168.63,29.58432314]
[1748541758010,5.92875823,168.67,168.63,51.13608791]
[1748541758905,27.480523,168.67,168.63,51.13608791]
[1748541759411,27.480523,168.67,168.63,29.58432314]
[1748541759793,42.30236446,168.67,168.63,29.3]
[1748541760121,5.92875823,168.67,168.64,21.55176477]
[1748541760497,5.92875823,168.67,168.65,21.55176477]
[1748541760893,5.92875823,168.67,168.64,21.83608791]
[1748541761705,5.92875823,168.67,168.63,50.85176477]
[1748541761907,20.75059969,168.67,168.63,50.85176477]
[1748541762728,5.92875823,168.67,168.63,50.85176477]
[1748541767409,27.480523,168.67,168.63,29.3]
[1748541769735,27.480523,168.67,168.63,50.85176477]
[1748541770307,21.55176477,168.66,168.63,29.3]
[1748541771606,5.92943966,168.65,168.63,29.3]
[1748541772223,5.92943966,168.65,168.63,50.85176477]
[1748541772908,5.92873658,168.67,168.64,21.83608791]
[1748541773105,5.92873658,168.67,168.65,21.55176477]
[1748541773524,5.92873658,168.67,168.6,18.79181043]
[1748541773525,6.0804,168.66,168.6,50.85176477]
[1748541773734,5.92979127,168.64,168.61,21.55176477]
[1748541774051,5.92979127,168.64,168.62,21.55176477]
[1748541774748,42.66873658,168.67,168.64,0.28432314]
[1748541775536,57.49057804,168.67,168.59,55.3]
[1748541775748,57.49057804,168.67,168.63,0.28432314]
[1748541776433,20.75057804,168.67,168.63,0.28432314]
[1748541776638,57.47057804,168.67,168.63,21.83608791]
[1748541778362,57.47057804,168.67,168.6,28.49181043]
[1748541778673,57.47057804,168.67,168.62,21.55176477]
[1748541778819,57.47057804,168.67,168.63,21.55176477]
[1748541779138,42.64873658,168.67,168.64,21.83608791]
[1748541780538,21.55176477,168.69,168.64,21.83608791]
[1748541780845,5.9283851,168.68,168.66,21.55176477]
[1748541781054,5.9283851,168.68,168.65,21.55176477]
[1748541782138,5.92803367,168.69,168.65,21.55176477]
[1748541782333,42.29988261,168.69,168.64,29.58432314]
[1748541782554,21.55176477,168.67,168.64,29.58432314]
[1748541782845,58.29176477,168.68,168.64,29.58432314]
[1748541783341,58.29176477,168.68,168.64,51.13608791]
[1748541783846,36.74,168.68,168.64,51.13608791]
[1748541784048,5.92873658,168.67,168.64,51.13608791]
[1748541784426,5.92873658,168.67,168.64,0.28432314]
[1748541785047,5.92873658,168.67,168.62,44.64964886]
[1748541785347,5.92873658,168.67,168.63,21.83608791]
[1748541785547,20.75057804,168.67,168.63,21.83608791]
[1748541786539,5.92873658,168.67,168.64,21.55176477]
[1748541786745,5.92873658,168.67,168.65,21.55176477]
[1748541787343,5.92851383,168.68,168.66,21.55176477]
[1748541787544,5.92768227,168.7,168.66,21.55176477]
[1748541787727,5.92697961,168.72,168.69,21.55176477]
[1748541788048,5.92662834,168.73,168.7,21.55176477]
[1748541789946,20.81519804,168.8,168.72,40.20141363]
[1748541790264,5.92452159,168.79,168.76,21.55176477]
[1748541791263,5.92452159,168.79,168.77,21.55176477]
[1748541792162,5.92452159,168.79,168.76,21.55176477]
[1748541792342,5.92452159,168.79,168.73,0.42648471]
[1748541792343,21.55176477,168.77,168.73,0.28432314]
[1748541792543,21.55176477,168.76,168.72,9.66]
[1748541792764,21.55176477,168.77,168.72,31.21176477]
[1748541793468,21.55176477,168.76,168.72,9.66]
[1748541793970,21.55176477,168.75,168.72,9.66]
[1748541794143,5.92627711,168.74,168.72,9.66]
[1748541794349,5.92627711,168.74,168.71,0.28432314]
[1748541794543,20.74196989,168.74,168.7,21.55176477]
[1748541794753,21.55176477,168.73,168.69,21.55176477]
[1748541794955,21.55176477,168.73,168.7,0.28432314]
[1748541795346,57.90196989,168.74,168.69,21.55176477]
[1748541795568,57.90196989,168.74,168.7,21.55176477]
[1748541795969,57.90196989,168.74,168.71,0.28432314]
[1748541796183,57.90196989,168.74,168.71,21.83608791]
[1748541796876,57.90196989,168.74,168.72,21.55176477]
[1748541796877,5.92627711,168.74,168.72,21.55176477]
[1748541797470,5.92627711,168.74,168.71,21.83608791]
[1748541798343,21.55176477,168.76,168.71,21.83608791]
[1748541798543,5.92592592,168.75,168.71,21.83608791]
[1748541798752,5.92592592,168.75,168.72,21.55176477]
[1748541799673,5.92592592,168.75,168.71,21.83608791]
[1748541800657,5.92592592,168.75,168.72,21.55176477]
[1748541801251,20.74074073,168.75,168.72,21.55176477]
[1748541801457,42.2925055,168.75,168.7,21.55176477]
[1748541801747,21.55176477,168.74,168.69,21.83608791]
[1748541802367,20.74074073,168.75,168.69,21.83608791]
[1748541802553,21.55176477,168.74,168.69,21.83608791]
[1748541803273,21.55176477,168.73,168.69,0.14216157]
[1748541803571,58.65176477,168.73,168.68,50.85176477]
[1748541804058,37.1,168.73,168.69,21.55176477]
[1748541804390,37.1,168.73,168.68,50.85176477]
[1748541804553,5.92697961,168.72,168.68,50.85176477]
[1748541805252,5.92697961,168.72,168.68,29.3]
[1748541805456,5.92697961,168.72,168.68,50.85176477]
[1748541805888,5.92697961,168.72,168.7,21.55176477]
[1748541806390,5.92697961,168.72,168.69,21.83608791]
[1748541807077,5.92697961,168.72,168.7,21.55176477]
[1748541807711,5.92627711,168.74,168.7,50.85176477]
[1748541808083,5.92557478,168.76,168.72,0.28432314]
[1748541808400,5.92487261,168.78,168.75,21.55176477]
[1748541808608,5.92487261,168.78,168.77,21.55176477]
[1748541808984,5.92487261,168.78,168.76,21.55176477]
[1748541809494,5.92452159,168.79,168.76,21.55176477]
[1748541809672,5.92452159,168.79,168.77,21.83608791]
[1748541810481,5.92452159,168.79,168.77,51.13608791]
[1748541813673,5.92452159,168.79,168.78,21.55176477]
[1748541813903,18.70997349,168.8,168.78,21.55176477]
[1748541814496,42.94276711,168.84,168.79,21.83608791]
[1748541814684,5.92276711,168.84,168.79,50.99392634]
[1748541814879,20.7296849,168.84,168.8,21.55176477]
[1748541817709,21.55176477,168.83,168.79,50.99392634]
[1748541817898,20.7296849,168.84,168.79,50.99392634]
[1748541817899,42.28144967,168.84,168.79,50.99392634]
[1748541818097,42.28144967,168.84,168.79,50.85176477]
[1748541818304,21.55176477,168.83,168.79,29.3]
[1748541819417,5.92346878,168.82,168.78,50.85176477]
[1748541819918,20.73214073,168.82,168.78,50.85176477]
[1748541820624,5.92346878,168.82,168.79,21.69392634]
[1748541820822,5.92346878,168.82,168.81,21.55176477]
[1748541820982,5.92311164,168.84,168.81,21.55176477]
[1748541821185,5.92311164,168.84,168.83,21.55176477]
[1748541821424,20.72496659,168.88,168.83,21.55176477]
[1748541821624,5.92136428,168.88,168.86,21.55176477]
[1748541822196,5.92136428,168.88,168.85,21.55176477]
[1748541822415,5.92136428,168.88,168.86,21.55176477]
[1748541822617,5.92136428,168.88,168.85,21.55176477]
[1748541823424,5.92136428,168.88,168.83,0.14216157]
[1748541823630,5.92136428,168.88,168.85,21.55176477]
[1748541824126,20.72477498,168.88,168.85,21.55176477]
[1748541824425,21.55176477,168.86,168.81,21.55176477]
[1748541824628,21.55176477,168.86,168.8,50.85176477]
[1748541824629,37.14,168.86,168.8,50.85176477]
[1748541824804,21.55176477,168.85,168.8,21.55176477]
[1748541825450,21.55176477,168.81,168.77,21.55176477]
[1748541825615,21.55176477,168.81,168.76,21.55176477]
[1748541826895,21.55176477,168.8,168.75,47.55176477]
[1748541827128,21.55176477,168.8,168.75,21.55176477]
[1748541827295,21.55176477,168.81,168.76,21.55176477]
[1748541827491,21.55176477,168.77,168.73,29.3]
[1748541827728,21.55176477,168.78,168.73,50.85176477]
[1748541828019,5.92452159,168.79,168.77,21.55176477]
[1748541828423,5.92452159,168.79,168.78,21.55176477]
[1748541828914,5.92346878,168.82,168.78,21.55176477]
[1748541829143,5.92346878,168.82,168.79,21.55176477]
[1748541829340,5.92346878,168.82,168.78,21.55176477]
[1748541829935,5.92346878,168.82,168.77,21.55176477]
[1748541829936,27.47523355,168.82,168.77,21.55176477]
[1748541830238,21.55176477,168.81,168.76,47.55176477]
[1748541831223,20.73214073,168.82,168.76,47.55176477]
[1748541831224,42.2839055,168.82,168.77,21.55176477]
[1748541831716,42.2839055,168.82,168.78,21.55176477]
[1748541832237,20.73214073,168.82,168.78,21.55176477]
[1748541832928,20.73214073,168.82,168.76,55.3]
[1748541832929,20.73214073,168.82,168.79,21.55176477]
[1748541833231,5.92346878,168.82,168.81,21.55176477]
[1748541833436,5.92346878,168.82,168.81,50.85176477]
[1748541833633,20.72879776,168.85,168.81,50.85176477]
[1748541835843,20.72879776,168.85,168.82,21.55176477]
[1748541836008,21.55176477,168.83,168.81,29.3]
[1748541836213,58.67176477,168.82,168.76,47.55176477]
[1748541836430,37.12,168.82,168.77,21.55176477]
[1748541836642,58.67176477,168.82,168.77,21.55176477]
[1748541836849,37.12,168.82,168.78,21.55176477]
[1748541837255,58.67176477,168.82,168.77,21.55176477]
[1748541837648,5.92381967,168.81,168.76,26.0]
[1748541837863,27.47558444,168.81,168.76,47.55176477]
[1748541838164,42.28513363,168.81,168.76,47.55176477]
[1748541838332,20.73336886,168.81,168.77,21.55176477]
[1748541838648,20.73336886,168.81,168.76,47.55176477]
[1748541838649,42.28513363,168.81,168.76,47.55176477]
[1748541838948,42.28513363,168.81,168.75,21.55176477]
[1748541838949,21.55176477,168.8,168.75,21.55176477]
[1748541839153,21.55176477,168.8,168.75,21.83608791]
[1748541840154,5.92452159,168.79,168.76,21.55176477]
[1748541840955,20.73582557,168.79,168.75,21.83608791]
[1748541842136,5.92381967,168.81,168.75,0.28432314]
[1748541842338,21.55176477,168.8,168.76,21.55176477]
[1748541842637,20.73336886,168.81,168.76,21.55176477]
[1748541842844,21.55176477,168.8,168.76,21.55176477]
[1748541843035,79.38513363,168.81,168.76,50.85176477]
[1748541845365,21.55176477,168.8,168.76,29.3]
[1748541845743,21.55176477,168.79,168.76,29.3]
[1748541846061,57.83336886,168.81,168.76,29.3]
[1748541846062,21.55176477,168.78,168.76,29.3]
[1748541846265,21.55176477,168.78,168.74,65.14]
[1748541846641,5.92522367,168.77,168.74,39.14]
[1748541848756,20.73828286,168.77,168.74,39.14]
[1748541849558,5.92522367,168.77,168.74,39.14]
[1748541849760,14.81081841,168.8,168.76,21.55176477]
[1748541849959,14.81081841,168.8,168.75,0.14216157]
[1748541849960,14.81081841,168.8,168.77,21.55176477]
[1748541850172,5.92417061,168.8,168.79,21.55176477]
[1748541850381,5.92417061,168.8,168.77,0.14216157]
[1748541850567,5.92417061,168.8,168.77,21.69392634]
[1748541850766,5.92417061,168.8,168.77,21.55176477]
[1748541851563,5.92417061,168.8,168.75,29.44216157]
[1748541851771,20.73459715,168.8,168.76,21.55176477]
[1748541852388,21.55176477,168.78,168.75,29.3]
[1748541852681,21.55176477,168.76,168.71,21.55176477]
[1748541852853,21.55176477,168.74,168.7,9.86]
[1748541853480,21.55176477,168.75,168.7,31.41176477]
[1748541853869,20.74196989,168.74,168.7,31.41176477]
[1748541854376,5.92627711,168.74,168.7,31.41176477]
[1748541854953,37.02,168.77,168.73,21.55176477]
[1748541855159,37.02,168.77,168.71,0.28432314]
[1748541855160,5.92534066,168.77,168.74,21.55176477]
[1748541855354,60.23426477,168.79,168.74,21.55176477]
[1748541855562,38.6825,168.79,168.75,21.55176477]
[1748541855774,37.02,168.79,168.76,21.55176477]
[1748541855976,37.02,168.8,168.77,21.55176477]
[1748541856165,37.02,168.8,168.76,21.55176477]
[1748541856775,27.47568401,168.81,168.76,21.55176477]
[1748541856965,37.0,168.81,168.77,21.55176477]
[1748541857283,70.88414282,168.82,168.77,21.55176477]
[1748541857880,33.88414282,168.82,168.77,21.55176477]
[1748541858072,70.88414282,168.82,168.77,21.55176477]
[1748541858463,70.86414282,168.82,168.77,21.55176477]
[1748541859284,49.31237805,168.82,168.78,21.55176477]
[1748541859479,42.90347805,168.82,168.79,21.55176477]
[1748541861668,36.98,168.82,168.79,21.55176477]
[1748541861880,20.73336886,168.81,168.74,29.3]
[1748541862064,21.55176477,168.79,168.74,21.55176477]
[1748541862261,21.55176477,168.8,168.75,21.55176477]
[1748541862675,5.92452159,168.79,168.75,21.55176477]
[1748541863186,27.47628636,168.79,168.74,21.55176477]
[1748541863375,5.92452159,168.79,168.75,21.55176477]
[1748541864292,42.28759034,168.79,168.74,21.55176477]
[1748541864481,36.94,168.78,168.74,21.55176477]
[1748541864669,5.92522367,168.77,168.74,21.55176477]
[1748541864877,5.92522367,168.77,168.75,21.55176477]
[1748541865567,42.86491034,168.78,168.76,21.55176477]
[1748541865764,5.92491034,168.78,168.77,21.55176477]
[1748541866664,5.92452159,168.79,168.77,21.55176477]
[1748541867389,5.92452159,168.79,168.76,21.55176477]
[1748541868803,5.92417061,168.8,168.78,21.55176477]
[1748541868966,5.92346878,168.82,168.78,21.55176477]
[1748541869290,42.86346878,168.82,168.78,21.55176477]
[1748541870767,5.92346878,168.82,168.78,21.55176477]
[1748541870964,24.66674342,168.85,168.75,35.36804511]
[1748541870965,5.92276711,168.84,168.81,21.55176477]
[1748541871168,5.92276711,168.84,168.82,21.55176477]
[1748541871767,5.92276711,168.84,168.81,21.55176477]
[1748541873082,5.92276711,168.84,168.79,0.28432314]
[1748541873378,5.92254111,168.85,168.83,21.55176477]
[1748541874385,5.92206561,168.86,168.83,21.55176477]
[1748541875094,5.92206561,168.86,168.83,50.85176477]
[1748541876869,58.47176477,168.88,168.83,50.85176477]
[1748541876870,5.92171492,168.87,168.83,50.85176477]
[1748541877577,42.27776701,168.87,168.83,29.3]
[1748541878198,42.27776701,168.87,168.83,50.85176477]
[1748541878393,21.55176477,168.85,168.83,29.3]
[1748541878577,58.41176477,168.84,168.83,29.3]
[1748541879078,58.41176477,168.84,168.77,0.14216157]
[1748541879079,87.15944967,168.84,168.77,21.55176477]
[1748541879283,21.55176477,168.82,168.77,21.55176477]
[1748541880481,21.55176477,168.79,168.74,50.85176477]
[1748541880717,21.55176477,168.79,168.73,26.14216157]
[1748541881017,36.88,168.8,168.73,21.55176477]
[1748541881018,21.55176477,168.77,168.73,21.55176477]
[1748541881298,42.28881891,168.78,168.73,21.55176477]
[1748541881489,42.28881891,168.78,168.74,21.55176477]
[1748541881694,42.28881891,168.78,168.73,21.55176477]
[1748541883381,42.28881891,168.78,168.72,9.76]
[1748541883594,42.28881891,168.78,168.73,21.55176477]
[1748541884501,5.92487261,168.78,168.74,21.55176477]
[1748541885007,20.73600828,168.79,168.73,50.85176477]
[1748541885206,20.73600828,168.79,168.71,26.0]
[1748541885433,20.73600828,168.79,168.69,26.0]
[1748541885434,21.55176477,168.75,168.69,26.0]
[1748541885591,21.55176477,168.74,168.7,26.0]
[1748541885786,21.55176477,168.74,168.69,21.55176477]
[1748541886906,58.51176477,168.75,168.7,21.55176477]
[1748541887097,5.92627711,168.74,168.71,21.55176477]
[1748541887504,5.92627711,168.74,168.7,21.55176477]
[1748541890386,5.92627711,168.74,168.71,21.83608791]
[1748541890591,16.38414921,168.77,168.72,21.55176477]
[1748541890592,5.92605054,168.75,168.72,21.55176477]
[1748541890821,21.55176477,168.77,168.71,0.14216157]
[1748541890822,5.92568718,168.76,168.73,21.55176477]
[1748541891014,5.92568718,168.76,168.73,50.85176477]
[1748541891715,5.92568718,168.76,168.73,29.3]
[1748541894617,5.92568718,168.76,168.73,50.85176477]
[1748541894790,5.92568718,168.76,168.73,29.3]
[1748541897013,5.92568718,168.76,168.73,50.85176477]
[1748541897318,5.92568718,168.76,168.74,21.55176477]
[1748541897790,36.92,168.78,168.75,21.55176477]
[1748541897992,36.92,168.79,168.75,21.55176477]
[1748541898798,58.47176477,168.79,168.74,21.83608791]
[1748541899002,5.92487261,168.78,168.74,21.83608791]
[1748541899198,5.92487261,168.78,168.75,21.55176477]
[1748541901016,5.92487261,168.78,168.74,21.83608791]
[1748541902422,5.92487261,168.78,168.74,51.13608791]
[1748541902720,5.92487261,168.78,168.75,21.55176477]
[1748541903203,5.92487261,168.78,168.74,29.58432314]
[1748541903204,5.92417061,168.8,168.77,21.55176477]
[1748541903406,1.5124,168.85,168.79,21.55176477]
[1748541903614,5.92241634,168.85,168.83,21.55176477]
[1748541903826,5.92136428,168.88,168.84,21.55176477]
[1748541904005,5.92136428,168.88,168.86,21.55176477]
[1748541904316,5.92077446,168.9,168.87,21.55176477]
[1748541904644,5.91996211,168.92,168.89,21.55176477]
[1748541904920,5.91996211,168.92,168.91,21.55176477]
[1748541905230,5.91996211,168.92,168.9,21.55176477]
[1748541905432,5.91996211,168.92,168.89,21.55176477]
[1748541905920,5.91996211,168.92,168.87,21.69392634]
[1748541906096,5.91996211,168.92,168.86,21.69392634]
[1748541906097,21.55176477,168.91,168.86,21.69392634]
[1748541906298,58.49176477,168.91,168.84,55.3]
[1748541906533,58.49176477,168.91,168.84,21.69392634]
[1748541906534,21.55176477,168.89,168.84,21.69392634]
[1748541906735,21.55176477,168.87,168.82,9.76]
[1748541906936,21.55176477,168.86,168.8,18.64964886]
[1748541907113,21.55176477,168.86,168.81,21.55176477]
[1748541907303,21.55176477,168.85,168.79,21.55176477]
[1748541907626,36.94,168.87,168.78,31.35176477]
[1748541907627,21.55176477,168.83,168.78,31.35176477]
[1748541908016,35.08675447,168.83,168.78,44.88675447]
[1748541908533,5.92346878,168.82,168.79,35.08675447]
[1748541909327,5.92346878,168.82,168.8,35.08675447]
[1748541909716,5.92346878,168.82,168.79,35.08675447]
[1748541909913,5.92346878,168.82,168.78,44.88675447]
[1748541910307,5.92346878,168.82,168.79,35.08675447]
[1748541910507,5.92311792,168.83,168.79,35.08675447]
[1748541910814,41.00987239,168.83,168.78,44.88675447]
[1748541911011,5.92311792,168.83,168.79,35.08675447]
[1748541911633,20.73091274,168.83,168.79,35.08675447]
[1748541911828,35.08675447,168.82,168.77,35.08675447]
[1748541912734,5.92381967,168.81,168.77,35.08675447]
[1748541913433,41.01057414,168.81,168.76,61.08675447]
[1748541913954,35.08675447,168.79,168.75,39.24216157]
[1748541914115,35.08675447,168.79,168.75,9.8]
[1748541914316,72.00675447,168.79,168.75,9.8]
[1748541914742,5.92487261,168.78,168.75,9.8]
[1748541914936,5.92487261,168.78,168.75,44.88675447]
[1748541915316,5.92487261,168.78,168.75,9.8]
[1748541915527,41.01133826,168.79,168.75,9.8]
[1748541916042,5.92458379,168.79,168.75,44.88675447]
[1748541916420,35.08675447,168.83,168.78,35.08675447]
[1748541916738,72.00675447,168.83,168.78,35.08675447]
[1748541917311,35.08675447,168.82,168.77,35.08675447]
[1748541918513,42.84311792,168.83,168.79,35.08675447]
[1748541919136,5.92311792,168.83,168.79,35.08675447]
[1748541921360,36.92,168.85,168.8,35.08675447]
[1748541921361,77.90917081,168.85,168.8,35.08675447]
[1748541921856,5.92241634,168.85,168.82,35.08675447]
[1748541922349,5.92171492,168.87,168.83,35.08675447]
[1748541922726,5.92171492,168.87,168.79,46.67863357]
[1748541922727,5.92171492,168.87,168.84,35.08675447]
[1748541922982,5.92171492,168.87,168.82,0.14216157]
[1748541922983,57.64415432,168.89,168.82,26.14216157]
[1748541923254,92.73090879,168.89,168.84,35.08675447]
[1748541923423,5.92101367,168.89,168.85,35.08675447]
[1748541923622,23.41761745,168.91,168.88,35.08675447]
[1748541924140,23.41761745,168.91,168.87,35.08675447]
[1748541924525,17.49722277,168.91,168.88,35.08675447]
[1748541924724,17.49722277,168.91,168.9,35.22891604]
[1748541925156,5.9178601,168.98,168.91,0.14216157]
[1748541925347,36.92,168.97,168.93,35.08675447]
[1748541925533,35.08675447,168.96,168.91,35.22891604]
[1748541925856,35.08675447,168.95,168.9,64.38675447]
[1748541926050,35.08675447,168.94,168.9,29.3]
[1748541926224,36.92,168.97,168.9,35.08675447]
[1748541926430,35.08675447,168.95,168.9,35.08675447]
[1748541926963,5.92066311,168.9,168.87,9.8]
[1748541927266,5.91996211,168.92,168.88,35.08675447]
[1748541927432,5.91996211,168.92,168.89,35.08675447]
[1748541927971,14.79704877,168.96,168.89,35.08675447]
[1748541927972,14.79704877,168.96,168.91,35.08675447]
[1748541928126,35.08675447,168.94,168.89,26.0]
[1748541928332,35.08675447,168.92,168.88,29.3]
[1748541928527,35.08675447,168.91,168.87,9.8]
[1748541928729,37.0,168.92,168.87,9.8]
[1748541929068,5.92066311,168.9,168.87,9.8]
[1748541929539,41.00741758,168.9,168.87,9.8]
[1748541930359,5.92066311,168.9,168.87,9.8]
[1748541930661,5.92066311,168.9,168.87,44.88675447]
[1748541932255,5.92066311,168.9,168.87,9.8]
[1748541932435,35.08675447,168.9,168.87,9.8]
[1748541932637,55.80662186,168.92,168.87,44.88675447]
[1748541933329,5.91996211,168.92,168.89,35.08675447]
[1748541933534,5.91996211,168.92,168.9,35.08675447]
[1748541934049,5.91996211,168.92,168.89,21.49970866]
[1748541934576,27.41932033,168.93,168.88,21.64187023]
[1748541935235,5.91961167,168.93,168.89,21.49970866]
[1748541936777,55.59021532,168.98,168.92,21.49970866]
[1748541936778,5.91821033,168.97,168.92,21.49970866]
[1748541937063,5.91821033,168.97,168.93,21.49970866]
[1748541937448,27.41791899,168.97,168.92,21.49970866]
[1748541937847,21.49970866,168.96,168.91,21.64187023]
[1748541938034,21.49970866,168.93,168.88,76.79970866]
[1748541938246,21.49970866,168.93,168.88,47.49970866]
[1748541938442,21.49970866,168.93,168.89,21.49970866]
[1748541938864,21.49970866,168.93,168.88,47.49970866]
[1748541940042,5.91996211,168.92,168.88,47.49970866]
[1748541940435,5.91996211,168.92,168.89,21.49970866]
[1748541941936,40.95964827,168.93,168.88,61.0400366]
[1748541943658,40.95964827,168.93,168.88,90.3400366]
[1748541943862,40.95964827,168.93,168.89,35.0400366]
[1748541943863,5.91961167,168.93,168.89,35.0400366]
[1748541944738,5.91934895,168.94,168.9,35.18219817]
[1748541944954,5.91934895,168.94,168.91,35.0400366]
[1748541945640,14.7951255,168.98,168.92,35.0400366]
[1748541945847,40.95824693,168.97,168.92,35.0400366]
[1748541947863,5.91926127,168.94,168.9,64.3400366]
[1748541949372,40.95929787,168.94,168.9,29.3]
[1748541949692,35.0400366,168.92,168.88,55.3]
[1748541949860,35.0400366,168.9,168.88,29.3]
[1748541950057,35.0400366,168.91,168.86,35.0400366]
[1748541950563,35.0400366,168.9,168.86,0.14216157]
[1748541950768,35.0400366,168.89,168.85,65.18]
[1748541951342,35.0400366,168.89,168.85,35.88]
[1748541951543,35.0400366,168.9,168.85,70.9200366]
[1748541951744,5.92101367,168.89,168.85,70.9200366]
[1748541952245,5.92101367,168.89,168.86,35.0400366]
[1748541952652,5.92077532,168.9,168.86,35.0400366]
[1748541953177,5.92009887,168.92,168.88,35.0400366]
[1748541953348,35.0400366,168.94,168.89,35.0400366]
[1748541953779,35.0400366,168.93,168.88,35.0400366]
[1748541955375,40.95999871,168.92,168.86,48.233972]
[1748541955591,40.95999871,168.92,168.88,0.14216157]
[1748541956069,5.91996211,168.92,168.88,35.18219817]
[1748541957078,5.91996211,168.92,168.89,35.0400366]
[1748541957593,5.91961167,168.93,168.89,35.0400366]
[1748541958080,40.9585972,168.96,168.91,35.0400366]
[1748541958275,40.9585972,168.96,168.89,0.14216157]
[1748541958276,35.0400366,168.95,168.9,35.0400366]
[1748541959152,5.9185606,168.96,168.9,35.0400366]
[1748541959477,55.75745106,168.94,168.89,35.18219817]
[1748541959786,35.0400366,168.92,168.88,29.3]
[1748541960673,35.0400366,168.89,168.88,29.3]
[1748541960868,35.0400366,168.9,168.85,44.9200366]
[1748541961066,35.0400366,168.91,168.86,35.0400366]
[1748541961464,5.92031259,168.91,168.86,35.0400366]
[1748541961774,5.92031259,168.91,168.87,35.18219817]
[1748541962472,41.6987366,168.92,168.87,35.18219817]
[1748541962473,5.9200976,168.92,168.88,35.0400366]
[1748541963573,35.0400366,168.91,168.87,0.14216157]
[1748541963902,35.0400366,168.9,168.86,0.14216157]
[1748541964057,21.50919978,168.9,168.85,31.38919978]
[1748541964266,20.72000288,168.92,168.85,9.88]
[1748541964267,21.50919978,168.89,168.85,9.88]
[1748541965381,21.50919978,168.87,168.85,9.88]
[1748541965678,5.92174125,168.87,168.85,9.88]
[1748541966490,27.43094103,168.87,168.84,29.3]
[1748541966673,27.43094103,168.87,168.83,29.44216157]
[1748541967882,42.23522835,168.87,168.83,29.44216157]
[1748541968270,42.23522835,168.87,168.83,29.3]
[1748541968471,5.91961167,168.93,168.84,26.0]
[1748541968691,21.50919978,168.91,168.86,21.50919978]
[1748541968972,21.50919978,168.88,168.83,26.14216157]
[1748541969171,21.50919978,168.88,168.83,26.0]
[1748541969388,21.50919978,168.85,168.81,26.0]
[1748541969587,5.92276711,168.84,168.81,26.0]
[1748541969798,5.92276711,168.84,168.81,47.50919978]
[1748541970291,5.92276711,168.84,168.81,26.0]
[1748541971699,5.92276711,168.84,168.8,9.88]
[1748541971700,21.50919978,168.83,168.8,9.88]
[1748541972077,21.50919978,168.82,168.8,9.88]
[1748541972279,21.50919978,168.83,168.8,9.88]
[1748541973606,27.43196689,168.84,168.8,9.88]
[1748541973896,5.92276711,168.84,168.81,21.50919978]
[1748541974202,34.1211,168.88,168.82,21.50919978]
[1748541974203,8.1211,168.88,168.82,21.50919978]
[1748541974400,64.4309147,168.87,168.82,21.50919978]
[1748541975008,42.92171492,168.87,168.82,21.50919978]
[1748541975300,5.92171492,168.87,168.83,21.50919978]
[1748541976603,64.44951237,168.91,168.86,21.50919978]
[1748541976780,21.50919978,168.9,168.85,21.50919978]
[1748541977681,5.92101367,168.89,168.85,21.50919978]
[1748541980917,5.92101367,168.89,168.86,21.50919978]
[1748541981123,44.8199,168.92,168.85,0.14216157]
[1748541981124,5.92031259,168.91,168.87,21.50919978]
[1748541981419,27.42951237,168.91,168.86,21.50919978]
[1748541982899,27.42951237,168.91,168.85,29.44216157]
[1748541982900,21.50919978,168.9,168.85,50.95136135]
[1748541983501,42.23029385,168.91,168.86,21.50919978]
[1748541984593,79.19029385,168.91,168.86,21.50919978]
[1748541986610,42.88031259,168.91,168.87,21.50919978]
[1748541986798,5.92031259,168.91,168.87,21.50919978]
[1748541988226,5.9200415,168.92,168.89,21.50919978]
[1748541988527,5.9200415,168.92,168.86,5.92180099]
[1748541988528,5.91926127,168.94,168.91,21.50919978]
[1748541988884,27.42846105,168.94,168.88,76.95136135]
[1748541989085,21.50919978,168.93,168.88,55.3]
[1748541989306,21.50919978,168.91,168.88,55.3]
[1748541989510,21.50919978,168.92,168.88,55.3]
[1748541989898,20.71741446,168.94,168.88,76.80919978]
[1748541990210,5.91996211,168.92,168.88,76.80919978]
[1748541991510,27.42916189,168.92,168.88,29.3]
[1748541991710,14.79815319,168.94,168.88,50.80919978]
[1748541991917,21.50919978,168.93,168.88,50.80919978]
[1748541992714,21.50919978,168.92,168.88,29.3]
[1748541993093,5.92031259,168.91,168.88,29.3]
[1748541994525,38.5945,168.96,168.88,56.73055908]
[1748541994728,38.5945,168.96,168.9,21.50919978]
[1748541994929,21.50919978,168.95,168.9,21.50919978]
[1748541996026,5.91961167,168.93,168.89,21.50919978]
[1748541999500,27.42856675,168.94,168.89,21.50919978]